bitfinex/quotes_BTCUSD_20250814
["timestamp","ask_amount","ask_price","bid_price","bid_amount"]
[1755139207900,0.00607885,123280.0,123270.0,1.63098574]
[1755139208674,0.00607885,123280.0,123270.0,1.16840774]
[1755139209205,0.00607885,123280.0,123270.0,1.03677774]
[1755139209395,0.00607885,123280.0,123270.0,1.16777774]
[1755139209594,0.00607885,123280.0,123270.0,1.03977774]
[1755139209755,0.00607885,123280.0,123270.0,1.17073774]
[1755139210159,0.00607885,123280.0,123270.0,1.86793072]
[1755139210458,0.00607885,123280.0,123270.0,2.01299664]
[1755139210689,0.00607885,123280.0,123270.0,2.14387664]
[1755139210897,0.00607885,123280.0,123270.0,2.01299664]
[1755139211117,0.00607885,123280.0,123270.0,2.14383664]
[1755139211617,0.00607885,123280.0,123270.0,2.16001664]
[1755139214326,0.00607885,123280.0,123270.0,2.14383664]
[1755139214993,0.00607885,123280.0,123270.0,2.20727664]
[1755139215211,0.00607885,123280.0,123270.0,2.33783664]
[1755139217973,0.00607885,123280.0,123270.0,2.14355664]
[1755139218820,0.00607885,123280.0,123270.0,2.16855664]
[1755139219274,0.00607885,123280.0,123270.0,2.14355664]
[1755139219418,0.00607885,123280.0,123270.0,2.16855664]
[1755139219853,0.00607885,123280.0,123270.0,2.20973664]
[1755139220252,0.00607885,123280.0,123270.0,2.20937664]
[1755139220603,0.00607885,123280.0,123270.0,1.33614366]
[1755139220816,0.00607885,123280.0,123270.0,1.46634366]
[1755139221037,0.00607885,123280.0,123270.0,2.20637664]
[1755139221239,0.00607885,123280.0,123270.0,2.65517664]
[1755139222109,0.00607885,123280.0,123270.0,2.65480664]
[1755139222354,0.00607885,123280.0,123270.0,2.65780664]
[1755139222524,0.00607885,123280.0,123270.0,2.65817664]
[1755139222721,0.00607885,123280.0,123270.0,2.50297664]
[1755139222925,0.00607885,123280.0,123270.0,1.86473366]
[1755139223105,0.00607885,123280.0,123270.0,1.88973366]
[1755139223310,0.00607885,123280.0,123270.0,1.86473366]
[1755139223493,0.00607885,123280.0,123270.0,1.88973366]
[1755139223838,0.00607885,123280.0,123270.0,1.74466774]
[1755139224447,0.00607885,123280.0,123270.0,2.48770072]
[1755139224880,0.00607885,123280.0,123270.0,2.35754072]
[1755139225066,0.00607885,123280.0,123270.0,2.65678072]
[1755139225280,0.00607885,123280.0,123270.0,2.68178072]
[1755139225482,0.00607885,123280.0,123270.0,2.68215072]
[1755139225789,0.00262432,123280.0,123270.0,2.48791072]
[1755139226219,0.00262432,123280.0,123270.0,2.63297664]
[1755139226633,0.00262432,123280.0,123270.0,2.70653664]
[1755139228498,0.00262432,123280.0,123270.0,2.57653664]
[1755139228719,0.00262432,123280.0,123270.0,2.70633664]
[1755139230790,0.00262432,123280.0,123270.0,2.57653664]
[1755139230993,0.00262432,123280.0,123270.0,2.70633664]
[1755139231385,0.00262432,123280.0,123270.0,2.57653664]
[1755139231595,0.00262432,123280.0,123270.0,2.70633664]
[1755139232379,0.00317,123310.0,123290.0,0.04118]
[1755139232616,0.00317,123310.0,123300.0,5.61470955]
[1755139233282,0.06684771,123330.0,123300.0,5.57002955]
[1755139233482,0.06684771,123330.0,123320.0,0.37151649]
[1755139233706,0.06880771,123330.0,123320.0,4.42724474]
[1755139234087,0.07197771,123330.0,123320.0,4.21458374]
[1755139234323,0.07197771,123330.0,123320.0,3.98958374]
[1755139234729,0.07197771,123330.0,123320.0,3.85982374]
[1755139234961,0.07197771,123330.0,123320.0,4.09054374]
[1755139235182,0.07197771,123330.0,123320.0,4.38570374]
[1755139235399,0.07197771,123330.0,123320.0,4.17230474]
[1755139236199,0.00613,123330.0,123320.0,4.17230474]
[1755139237545,0.00613,123330.0,123320.0,3.74603925]
[1755139237675,0.00613,123330.0,123320.0,4.11755574]
[1755139238818,0.00613,123330.0,123320.0,3.72143574]
[1755139240334,0.06684771,123350.0,123330.0,0.04037]
[1755139240534,0.06684771,123350.0,123340.0,1.00127649]
[1755139240680,0.06892771,123350.0,123340.0,0.50127649]
[1755139241592,0.00208,123350.0,123340.0,0.50127649]
[1755139241789,0.00208,123350.0,123340.0,1.70703949]
[1755139241991,0.00208,123350.0,123340.0,1.83679949]
[1755139242525,0.0061,123350.0,123340.0,1.83679949]
[1755139242908,0.0051,123350.0,123340.0,1.81632549]
[1755139243314,0.0071,123350.0,123340.0,1.71897927]
[1755139243514,0.0071,123350.0,123340.0,1.84873927]
[1755139244556,0.0071,123350.0,123340.0,1.46754627]
[1755139244765,0.0071,123350.0,123340.0,0.67167427]
[1755139245160,0.0071,123350.0,123340.0,1.06775427]
[1755139245798,0.0071,123350.0,123340.0,0.71677527]
[1755139245999,0.0071,123350.0,123340.0,0.84649527]
[1755139246119,0.0071,123350.0,123340.0,0.90399527]
[1755139246763,0.0071,123350.0,123340.0,0.82864027]
[1755139246963,0.0071,123350.0,123340.0,0.87958527]
[1755139247166,0.0071,123350.0,123340.0,0.72781027]
[1755139247373,0.0071,123350.0,123340.0,0.87958527]
[1755139247705,0.0071,123350.0,123340.0,0.90363747]
[1755139247979,0.0071,123350.0,123340.0,0.90260447]
[1755139248185,0.0071,123350.0,123340.0,0.86570447]
[1755139249897,0.0071,123350.0,123340.0,0.67154447]
[1755139250723,0.0071,123350.0,123340.0,0.30002798]
[1755139250924,0.0071,123350.0,123340.0,0.67154447]
[1755139252680,0.0071,123350.0,123340.0,0.67150447]
[1755139252887,0.0071,123350.0,123340.0,0.29998798]
[1755139253083,0.0071,123350.0,123340.0,0.67150447]
[1755139253882,0.002,123350.0,123340.0,0.67655447]
[1755139254090,0.00408,123350.0,123340.0,0.67362447]
[1755139254939,0.00408,123350.0,123340.0,0.77458447]
[1755139255172,0.00408,123350.0,123340.0,1.06970447]
[1755139255448,0.002,123350.0,123340.0,1.07263447]
[1755139256305,0.002,123350.0,123340.0,0.97167447]
[1755139256481,0.002,123350.0,123340.0,0.96874447]
[1755139256688,0.00408,123350.0,123340.0,0.96874447]
[1755139257068,0.0071,123350.0,123340.0,0.96874447]
[1755139258545,0.0071,123350.0,123340.0,0.78736753]
[1755139258717,0.0071,123350.0,123340.0,1.78854053]
[1755139258916,0.0071,123350.0,123340.0,1.56221553]
[1755139259157,0.0071,123350.0,123340.0,1.48322153]
[1755139260219,0.0071,123350.0,123340.0,0.65943553]
[1755139260579,0.0071,123350.0,123340.0,0.63046753]
[1755139261616,0.0071,123350.0,123340.0,0.66250831]
[1755139262211,0.0071,123350.0,123340.0,0.6865168]
[1755139262417,0.0071,123350.0,123340.0,0.6725248]
[1755139262619,0.0071,123350.0,123340.0,0.15910127]
[1755139262826,0.0071,123350.0,123340.0,0.66025776]
[1755139263248,0.0071,123350.0,123340.0,0.28874127]
[1755139263454,0.0071,123350.0,123340.0,0.66025776]
[1755139265071,0.0071,123350.0,123340.0,1.05633776]
[1755139266101,0.0071,123350.0,123340.0,0.68482127]
[1755139266274,0.0071,123350.0,123340.0,0.45212927]
[1755139266512,0.0071,123350.0,123340.0,0.95328576]
[1755139266716,0.0071,123350.0,123340.0,0.58176927]
[1755139266897,0.0071,123350.0,123340.0,0.70234527]
[1755139267100,0.0071,123350.0,123340.0,1.07386176]
[1755139267300,0.0071,123350.0,123340.0,0.74230176]
[1755139267513,0.0071,123350.0,123340.0,0.75132576]
[1755139267909,0.0071,123350.0,123340.0,0.86081176]
[1755139268287,0.0071,123350.0,123340.0,0.87190176]
[1755139270179,0.0071,123350.0,123340.0,0.50038527]
[1755139270366,0.0071,123350.0,123340.0,0.87190176]
[1755139270571,0.0071,123350.0,123340.0,0.42756576]
[1755139270741,0.0071,123350.0,123340.0,0.55716576]
[1755139270940,0.0071,123350.0,123340.0,0.18564927]
[1755139271350,0.0071,123350.0,123340.0,0.05604927]
[1755139271601,0.08982325,123350.0,123340.0,0.1296]
[1755139271972,0.08982325,123350.0,123340.0,0.10174752]
[1755139272177,0.08982325,123350.0,123340.0,0.23134752]
[1755139273846,0.08982325,123350.0,123340.0,0.23130752]
[1755139274159,0.08982325,123350.0,123340.0,0.26481048]
[1755139275086,0.08982325,123350.0,123340.0,0.66089048]
[1755139275531,0.08982325,123350.0,123340.0,0.55914296]
[1755139275733,0.08982325,123350.0,123340.0,0.45818296]
[1755139275933,0.08982325,123350.0,123340.0,0.82969945]
[1755139276510,0.08982325,123350.0,123340.0,0.70013945]
[1755139276715,0.08982325,123350.0,123340.0,0.82969945]
[1755139276916,0.08982325,123350.0,123340.0,0.80885621]
[1755139277328,0.08982325,123350.0,123340.0,0.43733972]
[1755139277565,0.08982325,123350.0,123330.0,0.14213505]
[1755139277566,0.46133974,123350.0,123330.0,0.14213505]
[1755139277741,0.46133974,123350.0,123330.0,0.04037]
[1755139277742,0.08568325,123340.0,123330.0,0.04037]
[1755139277939,0.08763325,123340.0,123330.0,0.16993]
[1755139278156,0.08763325,123340.0,123330.0,0.04037]
[1755139278403,0.08763325,123340.0,123330.0,0.16993]
[1755139279079,0.45914974,123340.0,123330.0,0.04037]
[1755139279485,0.45914974,123340.0,123330.0,0.16993]
[1755139279688,0.08963325,123340.0,123330.0,0.16993]
[1755139280210,0.08963325,123340.0,123330.0,0.04037]
[1755139280211,0.08763325,123340.0,123330.0,0.04037]
[1755139280423,0.46214974,123340.0,123330.0,0.04037]
[1755139280751,0.46214974,123340.0,123330.0,0.16989]
[1755139281159,0.46214974,123340.0,123330.0,0.16993]
[1755139281932,0.46214974,123340.0,123330.0,0.04037]
[1755139282134,0.46214974,123340.0,123330.0,0.16989]
[1755139283322,0.46214974,123340.0,123330.0,0.04037]
[1755139283481,0.46214974,123340.0,123330.0,0.16993]
[1755139285010,0.46214974,123340.0,123330.0,0.56605]
[1755139285402,0.46214974,123340.0,123330.0,0.46509]
[1755139285628,0.46214974,123340.0,123330.0,0.1942]
[1755139287004,0.46214974,123340.0,123330.0,0.32372]
[1755139287420,0.46214974,123340.0,123310.0,0.03251399]
[1755139287594,0.00296,123330.0,123310.0,0.03251399]
[1755139287782,0.00296,123330.0,123320.0,0.12952]
[1755139288145,0.08763325,123330.0,123320.0,0.12952]
[1755139289036,0.50516471,123330.0,123290.0,0.10176505]
[1755139289259,0.50516471,123330.0,123290.0,0.03352974]
[1755139289260,0.45719974,123320.0,123290.0,0.03352974]
[1755139289425,0.00296,123310.0,123300.0,0.12952]
[1755139289597,0.08763325,123310.0,123300.0,0.12952]
[1755139289792,0.08763325,123310.0,123280.0,0.10497505]
[1755139290020,0.08568325,123300.0,123280.0,0.47649154]
[1755139290232,0.08568325,123300.0,123290.0,0.12952]
[1755139290392,0.08763325,123300.0,123290.0,0.12952]
[1755139291737,0.08763325,123300.0,123280.0,0.40743114]
[1755139291939,0.08763325,123300.0,123290.0,0.12948]
[1755139292139,0.08763325,123300.0,123280.0,0.40743114]
[1755139292344,0.08963325,123300.0,123290.0,0.50099649]
[1755139292527,0.08472325,123300.0,123290.0,0.50301649]
[1755139292727,0.08472325,123300.0,123290.0,0.50622649]
[1755139292928,0.08272325,123300.0,123290.0,0.50622649]
[1755139294426,0.08372325,123300.0,123290.0,0.50622649]
[1755139294848,0.08272325,123300.0,123290.0,0.50622649]
[1755139295002,0.08272325,123300.0,123290.0,0.53095]
[1755139295199,0.08472325,123300.0,123290.0,0.90246649]
[1755139297153,0.08472325,123300.0,123290.0,0.80146649]
[1755139299166,0.08472325,123300.0,123290.0,0.70046649]
[1755139299815,0.08472325,123300.0,123290.0,0.32895]
[1755139300030,0.08472325,123300.0,123290.0,0.70046649]
[1755139301010,0.08986325,123300.0,123290.0,0.69725649]
[1755139301359,0.08986325,123300.0,123290.0,0.50301649]
[1755139301780,0.08986325,123300.0,123290.0,0.00202]
[1755139301981,0.08986325,123300.0,123280.0,0.03583465]
[1755139301982,0.08986325,123300.0,123280.0,0.40422114]
[1755139302228,0.08986325,123300.0,123290.0,0.12944]
[1755139303148,0.08786325,123300.0,123290.0,0.12944]
[1755139303572,0.08786325,123300.0,123280.0,0.40422114]
[1755139303850,0.08786325,123300.0,123290.0,0.12944]
[1755139304208,0.08473325,123300.0,123290.0,0.13147]
[1755139304414,0.08473325,123300.0,123290.0,0.37354649]
[1755139304624,0.08473325,123300.0,123290.0,0.50298649]
[1755139305185,0.08573325,123300.0,123290.0,0.89926649]
[1755139306741,0.08573325,123300.0,123290.0,0.39831]
[1755139306886,0.08573325,123300.0,123290.0,0.42675]
[1755139307637,0.08573325,123300.0,123290.0,0.79826649]
[1755139307771,0.08573325,123300.0,123290.0,0.42675]
[1755139308968,0.08573325,123300.0,123290.0,0.32575]
[1755139309558,0.46037974,123300.0,123280.0,0.03216026]
[1755139309806,0.08886325,123300.0,123290.0,0.00203]
[1755139309943,0.08573325,123300.0,123290.0,0.13143]
[1755139310451,0.10397704,123300.0,123290.0,0.13143]
[1755139311063,0.10297704,123300.0,123290.0,0.13143]
[1755139312654,0.10397704,123300.0,123290.0,0.13139]
[1755139315051,0.10397704,123300.0,123290.0,0.10303]
[1755139315281,0.10397704,123300.0,123290.0,0.42667]
[1755139317257,0.10397704,123300.0,123290.0,0.32567]
[1755139317552,0.08573325,123300.0,123290.0,0.32567]
[1755139318753,0.08573325,123300.0,123290.0,0.3288]
[1755139319669,0.08573325,123300.0,123290.0,0.13448]
[1755139323276,0.08573325,123300.0,123290.0,0.13444]
[1755139325081,0.08573325,123300.0,123290.0,0.53072]
[1755139326308,0.08573325,123300.0,123290.0,0.1344]
[1755139327784,0.08573325,123300.0,123290.0,0.13127]
[1755139328247,0.08573325,123300.0,123290.0,0.00203]
[1755139328455,0.46049974,123300.0,123270.0,0.0031]
[1755139328654,0.45748974,123290.0,123260.0,0.15950303]
[1755139328863,0.37151649,123280.0,123260.0,0.15950303]
[1755139329063,0.08272325,123270.0,123260.0,0.08238161]
[1755139329306,0.08272325,123270.0,123260.0,0.08444161]
[1755139329631,0.09787933,123270.0,123260.0,0.21368161]
[1755139330231,0.09787933,123270.0,123260.0,0.21364161]
[1755139330845,0.09787933,123270.0,123260.0,0.5851581]
[1755139330975,0.09887933,123270.0,123260.0,0.5851581]
[1755139331178,0.08372325,123270.0,123260.0,0.5851581]
[1755139333985,0.08372325,123270.0,123260.0,0.56051447]
[1755139335168,0.08372325,123270.0,123260.0,0.5508831]
[1755139335474,0.08372325,123270.0,123260.0,0.5529431]
[1755139335781,0.08901325,123270.0,123260.0,0.03342518]
[1755139336190,0.08901325,123270.0,123250.0,0.39557167]
[1755139336318,0.08901325,123270.0,123260.0,0.12916]
[1755139337430,0.08901325,123270.0,123250.0,0.39557167]
[1755139337658,0.08901325,123270.0,123260.0,0.12916]
[1755139338503,0.08901325,123270.0,123260.0,0.1625227]
[1755139339005,0.08801325,123270.0,123260.0,0.1625227]
[1755139339753,0.08801325,123270.0,123260.0,0.53403919]
[1755139340436,0.08901325,123270.0,123260.0,0.53609919]
[1755139341454,0.08372325,123270.0,123260.0,0.40943919]
[1755139341762,0.08372325,123270.0,123260.0,0.53855919]
[1755139341922,0.08372325,123270.0,123260.0,0.1645427]
[1755139342109,0.08372325,123270.0,123260.0,0.52634387]
[1755139342499,0.08372325,123270.0,123260.0,0.39722387]
[1755139342699,0.08372325,123270.0,123260.0,0.52634387]
[1755139343512,0.08372325,123270.0,123260.0,0.39722387]
[1755139343893,0.08372325,123270.0,123260.0,0.02570738]
[1755139344099,0.08372325,123270.0,123260.0,0.52630387]
[1755139344668,0.08372325,123270.0,123260.0,0.39722387]
[1755139345046,0.08372325,123270.0,123260.0,0.92270387]
[1755139346251,0.08697325,123270.0,123260.0,0.92270387]
[1755139347004,0.08697325,123270.0,123260.0,0.55118738]
[1755139347170,0.08697325,123270.0,123260.0,0.92270387]
[1755139347793,0.08697325,123270.0,123260.0,0.39722387]
[1755139348204,0.08697325,123270.0,123260.0,0.52626387]
[1755139348592,0.08697325,123270.0,123260.0,0.39722387]
[1755139348893,0.08697325,123270.0,123260.0,0.52626387]
[1755139349490,0.08901325,123270.0,123260.0,0.52626387]
[1755139352374,0.08901325,123270.0,123260.0,0.62802892]
[1755139352923,0.08901325,123270.0,123260.0,0.62798892]
[1755139354984,0.08901325,123270.0,123260.0,0.92334892]
[1755139356616,0.08901325,123270.0,123260.0,0.55183243]
[1755139356779,0.08901325,123270.0,123260.0,0.92334892]
[1755139356950,0.08901325,123270.0,123260.0,0.82230892]
[1755139357387,0.08901325,123270.0,123260.0,0.62790892]
[1755139358022,0.08372325,123270.0,123260.0,0.62790892]
[1755139358234,0.08372325,123270.0,123260.0,0.52614387]
[1755139360630,0.08372325,123270.0,123260.0,0.62814532]
[1755139361487,0.08372325,123270.0,123260.0,0.12770883]
[1755139361620,0.08893325,123270.0,123260.0,0.62810532]
[1755139362229,0.08893325,123270.0,123260.0,0.49922532]
[1755139362489,0.08893325,123270.0,123260.0,0.62810532]
[1755139362808,0.08893325,123270.0,123260.0,0.25658883]
[1755139363032,0.08893325,123270.0,123260.0,0.62810532]
[1755139363384,0.08893325,123270.0,123260.0,0.49922532]
[1755139363570,0.08893325,123270.0,123260.0,0.62810532]
[1755139364212,0.08893325,123270.0,123260.0,0.62604532]
[1755139364612,0.08893325,123270.0,123260.0,0.62600532]
[1755139365030,0.08893325,123270.0,123260.0,1.02448532]
[1755139365204,0.08893325,123270.0,123260.0,0.65296883]
[1755139365535,0.08893325,123270.0,123260.0,1.02448532]
[1755139366618,0.08893325,123270.0,123260.0,0.79460532]
[1755139366820,0.08893325,123270.0,123260.0,0.92344532]
[1755139367296,0.08372325,123270.0,123260.0,0.92344532]
[1755139367660,0.08372325,123270.0,123260.0,0.79460532]
[1755139367861,0.08372325,123270.0,123260.0,0.69356532]
[1755139368061,0.08372325,123270.0,123260.0,0.82236532]
[1755139368741,0.08372325,123270.0,123260.0,0.45084883]
[1755139368942,0.08372325,123270.0,123260.0,0.49924532]
[1755139369069,0.08372325,123270.0,123260.0,0.62804532]
[1755139369841,0.08372325,123270.0,123260.0,0.25652883]
[1755139370045,0.08372325,123270.0,123260.0,0.62804532]
[1755139370357,0.08692325,123270.0,123260.0,0.62804532]
[1755139370857,0.08372325,123270.0,123260.0,0.62804532]
[1755139371208,0.08372325,123270.0,123260.0,0.25652883]
[1755139371408,0.08372325,123270.0,123260.0,0.62804532]
[1755139372617,0.08372325,123270.0,123260.0,0.49924532]
[1755139372932,0.08372325,123270.0,123260.0,0.62800532]
[1755139375093,0.08372325,123270.0,123260.0,1.02440532]
[1755139375289,0.001,123270.0,123260.0,0.79460532]
[1755139375627,0.001,123270.0,123260.0,0.72278387]
[1755139377199,0.001,123270.0,123260.0,0.86784979]
[1755139377892,0.001,123270.0,123260.0,0.67352979]
[1755139378403,0.001,123270.0,123260.0,0.54480979]
[1755139378538,0.001,123270.0,123260.0,0.67348979]
[1755139380294,0.001,123270.0,123260.0,1.56289304]
[1755139380675,0.001,123270.0,123260.0,1.69153304]
[1755139381125,0.0032,123310.0,123260.0,1.69153304]
[1755139381287,0.08592325,123310.0,123300.0,0.37151649]
[1755139381623,0.06684771,123320.0,123300.0,0.50223649]
[1755139381825,0.15277096,123320.0,123310.0,0.50015649]
[1755139382034,0.15478096,123320.0,123310.0,0.50015649]
[1755139382168,0.15478096,123320.0,123310.0,0.12864]
[1755139382366,0.15478096,123320.0,123310.0,0.37151649]
[1755139382571,0.15478096,123320.0,123310.0,0.53261309]
[1755139383411,0.15478096,123320.0,123310.0,0.1610966]
[1755139383619,0.15478096,123320.0,123310.0,0.53261309]
[1755139383815,0.15478096,123320.0,123310.0,0.1610966]
[1755139384032,0.15678096,123320.0,123310.0,0.53261309]
[1755139384762,0.15678096,123320.0,123310.0,0.1610966]
[1755139385015,0.15678096,123320.0,123310.0,0.29528]
[1755139385218,0.52829745,123320.0,123310.0,0.42384]
[1755139385386,0.52829745,123320.0,123310.0,0.32284]
[1755139385741,0.52829745,123320.0,123310.0,0.12856]
[1755139386579,0.08993325,123320.0,123310.0,0.12856]
[1755139387319,0.08993325,123320.0,123310.0,0.50007649]
[1755139387909,0.08993325,123320.0,123300.0,0.47685683]
[1755139388081,0.08993325,123320.0,123310.0,0.37151649]
[1755139388281,0.08993325,123320.0,123310.0,0.50007649]
[1755139388916,0.08792325,123320.0,123310.0,0.50206649]
[1755139389139,0.08472325,123320.0,123310.0,0.50206649]
[1755139389341,0.08472325,123320.0,123310.0,0.50202649]
[1755139389728,0.08472325,123320.0,123310.0,0.57462629]
[1755139389952,0.002,123320.0,123310.0,0.57712629]
[1755139390278,0.0032,123340.0,123310.0,0.57712629]
[1755139390604,0.08272325,123330.0,123320.0,0.12852]
[1755139390739,0.0032,123340.0,123320.0,0.13051]
[1755139391078,0.08592325,123340.0,123320.0,0.13051]
[1755139391720,0.08692325,123340.0,123320.0,0.50202649]
[1755139392176,0.08592325,123340.0,123320.0,0.50202649]
[1755139392634,0.08592325,123340.0,123330.0,0.12848]
[1755139392847,0.08801325,123340.0,123330.0,0.12848]
[1755139393296,0.08801325,123340.0,123320.0,0.37151649]
[1755139393504,0.08801325,123340.0,123330.0,0.12848]
[1755139393955,0.09001325,123340.0,123330.0,0.13047]
[1755139394177,0.08472325,123340.0,123330.0,0.50198649]
[1755139394400,0.0002,123370.0,123330.0,0.37600649]
[1755139394623,0.08592325,123360.0,123350.0,0.37151649]
[1755139394834,0.08592325,123360.0,123350.0,0.50198649]
[1755139395037,0.08592325,123360.0,123350.0,0.52671]
[1755139395239,0.08801325,123360.0,123350.0,0.52472]
[1755139395366,0.08801325,123360.0,123350.0,0.42368]
[1755139397024,0.08272325,123360.0,123350.0,0.69618649]
[1755139397307,0.002,123360.0,123350.0,0.50194649]
[1755139398134,0.0002,123370.0,123350.0,0.50194649]
[1755139398388,0.08612325,123370.0,123350.0,0.00199]
[1755139398593,0.0002,123370.0,123360.0,0.37151649]
[1755139398798,0.0002,123370.0,123360.0,0.50190649]
[1755139398928,0.00549,123370.0,123360.0,0.1284]
[1755139401148,0.00649,123370.0,123360.0,0.16138093]
[1755139402272,0.00649,123370.0,123360.0,0.53289742]
[1755139404266,0.012684,123380.0,123360.0,0.53488742]
[1755139404441,0.09540725,123380.0,123360.0,0.40942742]
[1755139404857,0.09540725,123380.0,123370.0,0.12836]
[1755139405064,0.09749725,123380.0,123370.0,0.42551]
[1755139405470,0.09849725,123380.0,123370.0,0.79996649]
[1755139405817,0.09640725,123380.0,123370.0,0.69900649]
[1755139406673,0.013684,123380.0,123370.0,0.37644649]
[1755139406879,0.013684,123380.0,123370.0,0.50476649]
[1755139407474,0.012684,123380.0,123370.0,0.50476649]
[1755139407919,0.013684,123380.0,123370.0,0.50476649]
[1755139409975,0.015774,123380.0,123370.0,0.00493]
[1755139410377,0.013684,123380.0,123370.0,0.13321]
[1755139410611,0.013684,123380.0,123370.0,0.50472649]
[1755139413213,0.013684,123380.0,123370.0,0.13321]
[1755139413357,0.013684,123380.0,123370.0,0.50472649]
[1755139415013,0.013684,123380.0,123370.0,0.90080649]
[1755139415638,0.013684,123380.0,123370.0,0.52929]
[1755139415843,0.013684,123380.0,123370.0,0.90080649]
[1755139416411,0.013684,123380.0,123370.0,0.52929]
[1755139416785,0.015744,123380.0,123370.0,0.52635]
[1755139416990,0.018894,123380.0,123370.0,0.52635]
[1755139417191,0.013684,123380.0,123370.0,0.19915]
[1755139417362,0.013684,123380.0,123370.0,0.69890649]
[1755139419158,0.013684,123380.0,123370.0,0.50474649]
[1755139422083,0.015744,123380.0,123370.0,0.00499]
[1755139422280,0.015744,123380.0,123370.0,0.13319]
[1755139422507,0.015744,123380.0,123370.0,0.13019]
[1755139422716,0.018894,123380.0,123370.0,0.13019]
[1755139423575,0.013684,123380.0,123370.0,0.50470649]
[1755139423995,0.013684,123380.0,123370.0,0.37650649]
[1755139424222,0.013684,123380.0,123370.0,0.50466649]
[1755139424966,0.013684,123380.0,123370.0,0.90074649]
[1755139426368,0.013684,123380.0,123370.0,0.79978649]
[1755139428523,0.013684,123380.0,123370.0,0.42827]
[1755139428726,0.03088604,123380.0,123370.0,0.42827]
[1755139428892,0.03088604,123380.0,123370.0,0.19615]
[1755139429094,0.40555253,123380.0,123370.0,0.12812]
[1755139429500,0.03403604,123380.0,123370.0,0.12812]
[1755139431466,0.03088604,123380.0,123370.0,0.00207]
[1755139431669,0.02882604,123380.0,123370.0,0.37658649]
[1755139431871,0.02882604,123380.0,123370.0,0.50470649]
[1755139432009,0.02882604,123380.0,123370.0,0.37658649]
[1755139432204,0.02882604,123380.0,123370.0,0.50470649]
[1755139432410,0.02882604,123380.0,123370.0,0.57730629]
[1755139434013,0.02882604,123380.0,123370.0,0.44918629]
[1755139434215,0.02882604,123380.0,123370.0,0.57730629]
[1755139434635,0.02882604,123380.0,123370.0,0.50470649]
[1755139435096,0.02882604,123380.0,123370.0,0.67170649]
[1755139435296,0.013684,123380.0,123370.0,0.90163402]
[1755139435845,0.012684,123380.0,123370.0,0.90163402]
[1755139436048,0.012684,123380.0,123370.0,0.53011753]
[1755139436305,0.012684,123380.0,123370.0,0.80067402]
[1755139437790,0.012684,123380.0,123370.0,0.60651402]
[1755139437993,0.012684,123380.0,123370.0,3.75941827]
[1755139438224,0.012684,123380.0,123370.0,1.75500227]
[1755139438536,0.012684,123380.0,123370.0,1.65315474]
[1755139438708,0.012684,123380.0,123370.0,1.52662674]
[1755139439112,0.00370751,123380.0,123370.0,1.52662674]
[1755139439333,0.00370751,123380.0,123370.0,1.14492409]
[1755139439534,0.00370751,123380.0,123370.0,0.58348584]
[1755139439931,0.00370751,123380.0,123370.0,0.71152584]
[1755139443782,0.00370751,123380.0,123370.0,0.60834884]
[1755139443934,0.00370751,123380.0,123370.0,0.60779084]
[1755139444139,0.00370751,123380.0,123370.0,0.73583084]
[1755139444347,0.00370751,123380.0,123370.0,0.60834884]
[1755139444540,0.00370751,123380.0,123370.0,0.74560784]
[1755139444915,0.00370751,123380.0,123370.0,0.94744784]
[1755139445113,0.00370751,123380.0,123370.0,1.14156784]
[1755139446018,0.00370751,123380.0,123370.0,1.04064784]
[1755139448939,0.00370751,123380.0,123370.0,0.66913135]
[1755139449111,0.00370751,123380.0,123370.0,1.04064784]
[1755139449320,0.001064,123380.0,123370.0,1.04064784]
[1755139449513,0.001064,123380.0,123370.0,0.93892549]
[1755139450041,0.001064,123380.0,123370.0,0.83800549]
[1755139452054,0.001064,123380.0,123370.0,0.78887141]
[1755139452634,0.001064,123380.0,123370.0,0.88887141]
[1755139454270,0.001064,123380.0,123370.0,0.76091141]
[1755139454620,0.001064,123380.0,123370.0,0.88887141]
[1755139454975,0.001064,123380.0,123370.0,1.28483141]
[1755139455590,0.001064,123380.0,123370.0,1.15687141]
[1755139455796,0.003154,123380.0,123370.0,0.91569241]
[1755139456145,0.006204,123380.0,123370.0,0.47351649]
[1755139456277,0.006204,123380.0,123370.0,0.60143649]
[1755139456698,0.003154,123380.0,123370.0,0.60143649]
[1755139456901,0.003154,123380.0,123370.0,0.60344649]
[1755139457325,0.00395737,123380.0,123370.0,0.47351649]
[1755139457529,0.00395737,123380.0,123370.0,0.60143649]
[1755139457952,0.05,123390.0,123370.0,0.47848649]
[1755139458164,0.05,123390.0,123380.0,0.50239649]
[1755139458360,0.05,123390.0,123380.0,0.50440649]
[1755139458557,0.05167,123390.0,123380.0,0.50440649]
[1755139458994,0.05167,123390.0,123380.0,0.37648649]
[1755139459134,0.05167,123390.0,123380.0,0.50440649]
[1755139459555,0.05167,123390.0,123380.0,0.50144649]
[1755139461659,0.05,123390.0,123380.0,0.50440649]
[1755139463390,0.05167,123390.0,123380.0,0.13289]
[1755139463589,0.05167,123390.0,123380.0,0.50140649]
[1755139463815,0.05167,123390.0,123380.0,0.37648649]
[1755139464018,0.05167,123390.0,123380.0,0.50436649]
[1755139464250,0.05,123390.0,123380.0,0.50436649]
[1755139465051,0.05,123390.0,123380.0,0.90032649]
[1755139465277,0.01440857,123390.0,123380.0,0.52971063]
[1755139465451,0.01440857,123390.0,123380.0,0.90122712]
[1755139465654,0.01440857,123390.0,123380.0,0.80030712]
[1755139466075,0.01607857,123390.0,123380.0,0.80030712]
[1755139466279,0.01607857,123390.0,123380.0,0.79734712]
[1755139468226,0.01607857,123390.0,123380.0,0.79533712]
[1755139468428,0.01910857,123390.0,123380.0,0.79533712]
[1755139468575,0.01607857,123390.0,123380.0,0.79533712]
[1755139469280,0.01910857,123390.0,123380.0,0.47333712]
[1755139469485,0.01910857,123390.0,123380.0,0.60121712]
[1755139469798,0.01607857,123390.0,123380.0,0.60121712]
[1755139470008,0.01607857,123390.0,123380.0,0.59121712]
[1755139470400,0.01910857,123390.0,123380.0,0.21966063]
[1755139470749,0.10183182,123390.0,123380.0,0.59117712]
[1755139470900,0.10183182,123390.0,123380.0,0.46333712]
[1755139471089,0.10183182,123390.0,123380.0,0.59117712]
[1755139471703,0.10183182,123390.0,123380.0,0.21966063]
[1755139471918,0.10183182,123390.0,123370.0,0.1]
[1755139472175,0.08575325,123380.0,123370.0,0.1]
[1755139472376,0.08744325,123380.0,123370.0,0.22784]
[1755139472588,0.08744325,123380.0,123370.0,0.1]
[1755139472781,0.08744325,123380.0,123370.0,0.59935649]
[1755139473000,0.08744325,123380.0,123370.0,0.47151649]
[1755139473247,0.08441325,123380.0,123370.0,0.60035649]
[1755139474529,0.08743325,123380.0,123370.0,0.59935649]